fUSD/lending_fUSD_20250217
["ID","MTS","AMOUNT","RATE_DAILY","PERIOD"]
[353432940,1739825443266,-500.0,0.0001518,2]
[353432942,1739825443276,-500.0,0.0001518,2]
[353432944,1739825443286,-500.0,0.0001518,2]
[353432946,1739825443296,-500.0,0.0001518,2]
[353432948,1739825443306,-500.0,0.0001518,2]
[353432950,1739825443316,-500.0,0.0001518,2]
[353432952,1739825443326,-500.0,0.0001518,2]
[353432954,1739825443335,-500.0,0.0001518,2]
[353432956,1739825443345,-620.84,0.0001518,2]
[353432958,1739825443355,-529.16,0.0001518,2]
[353432960,1739825443365,-605.5,0.0001518,2]
[353432962,1739825443374,-500.0,0.0001518,2]
[353432964,1739825443384,-500.0,0.0001518,2]
[353432966,1739825443394,-500.0,0.0001518,2]
[353432969,1739825443404,-500.0,0.0001518,2]
[353432971,1739825443414,-500.0,0.0001518,2]
[353432973,1739825443424,-500.0,0.0001518,2]
[353432975,1739825443434,-500.0,0.0001518,2]
[353432977,1739825443444,-509.24405293,0.0001518,2]
[353432979,1739825443454,-500.0,0.0001518,2]
[353432981,1739825443464,-500.0,0.0001518,2]
[353432983,1739825443473,-500.0,0.0001518,2]
[353432985,1739825443483,-500.0,0.0001518,2]
[353432987,1739825443493,-500.0,0.0001518,2]
[353432989,1739825443503,-500.0,0.0001518,2]
[353432991,1739825443514,-500.0,0.0001518,2]
[353432993,1739825443524,-500.0,0.0001518,2]
[353432995,1739825443534,-500.0,0.0001518,2]
[353432997,1739825443544,-500.0,0.0001518,2]
[353432999,1739825443554,-500.0,0.0001518,2]
[353433001,1739825443564,-500.0,0.0001518,2]
[353433003,1739825443573,-247.25894736,0.0001518,2]
[353433009,1739825443621,-252.74105264,0.0001518,2]
[353433011,1739825443631,-500.0,0.0001518,2]
[353433013,1739825443640,-500.0,0.0001518,2]
[353433015,1739825443650,-500.0,0.0001518,2]
[353433017,1739825443660,-547.76,0.0001518,2]
[353433019,1739825443670,-501.94083038,0.0001518,2]
[353433021,1739825443680,-502.46614023,0.0001518,2]
[353433023,1739825443690,-530.16050554,0.0001518,2]
[353433026,1739825443701,-271.54743201,0.0001518,2]
[353433028,1739825443713,-228.45256799,0.0001518,2]
[353433030,1739825443724,-500.0,0.0001518,2]
[353433032,1739825443734,-25.2960979,0.0001518,2]
[353433034,1739825443748,-474.7039021,0.0001518,2]
[353433036,1739825443759,-500.0,0.0001518,2]
[353433038,1739825443769,-484.7360979,0.0001518,2]
[353433040,1739825443781,-15.2639021,0.0001518,2]
[353433043,1739825443793,-500.0,0.0001518,2]
[353433045,1739825443804,-500.0,0.0001518,2]
[353433047,1739825443814,-526.52,0.0001518,2]
[353433049,1739825443825,-649.90535552,0.0001518,2]
[353433051,1739825443835,-550.27663948,0.0001518,2]
[353433053,1739825443845,-500.0,0.00015251,2]
[353433055,1739825443855,-1718.61817897,0.00015252,3]
[353433058,1739825443875,-13415.93889998,0.00015252,3]
[353433060,1739825443887,-1851.03020015,0.00015252,3]
[353433062,1739825443896,-74.41979985,0.0001526,2]
[353433070,1739825443957,-1145.05020015,0.0001526,2]
[353433072,1739825443968,-500.0,0.0001526,2]
[353433074,1739825443979,-208.98,0.0001526,2]
[353433076,1739825443989,-998.94,0.0001526,2]
[353433078,1739825443999,-824.59,0.0001526,2]
[353433079,1739825444009,-500.0,0.00015262,2]
[353433082,1739825444018,-370.6,0.00015262,2]
[353433084,1739825444029,-180.01,0.00015262,2]
[353433086,1739825444039,-153.29,0.00015262,2]
[353433088,1739825444049,-500.0,0.00015262,2]
[353433090,1739825444059,-500.0,0.00015262,2]
[353433092,1739825444070,-199.16,0.00015262,2]
[353433094,1739825444079,-219.92,0.00015262,2]
[353433096,1739825444089,-231.66,0.00015262,2]
[353433098,1739825444099,-500.0,0.00015262,2]
[353433100,1739825444109,-354.96,0.00015262,2]
[353433102,1739825444119,-270.95,0.00015262,2]
[353433104,1739825444128,-187.09,0.00015262,2]
[353433106,1739825444138,-198.84,0.00015262,2]
[353433108,1739825444148,-195.24,0.00015262,2]
[353433110,1739825444158,-373.0,0.00015262,2]
[353433112,1739825444169,-342.7,0.00015262,2]
[353433133,1739825444367,-442.7,0.00015262,2]
[353433135,1739825444377,-504.54,0.00015262,2]
[353433137,1739825444387,-308.95,0.00015262,2]
[353433139,1739825444396,-248.71,0.00015262,2]
[353433141,1739825444405,-303.81,0.00015262,2]
[353433143,1739825444415,-500.0,0.00015262,2]
[353433145,1739825444425,-552.39722698,0.00015262,2]
[353433147,1739825444435,-500.0,0.00015262,2]
[353433149,1739825444445,-500.0,0.00015262,2]
[353433151,1739825444455,-500.0,0.00015262,2]
[353433153,1739825444464,-500.0,0.00015262,2]
[353433155,1739825444475,-305.91,0.00015262,2]
[353433157,1739825444484,-500.0,0.00015262,2]
[353433159,1739825444494,-215.16,0.00015262,2]
[353433161,1739825444503,-500.0,0.00015262,2]
[353433163,1739825444513,-500.0,0.00015262,2]
[353433165,1739825444523,-500.0,0.00015262,2]
[353433167,1739825444533,-500.0,0.00015262,2]
[353433169,1739825444543,-194.45,0.00015262,2]
[353433171,1739825444552,-451.28,0.00015262,2]
[353433173,1739825444562,-417.31,0.00015262,2]
[353433175,1739825444572,-184.25,0.00015262,2]
[353433177,1739825444582,-452.47,0.00015262,2]
[353433179,1739825444592,-202.25,0.00015262,2]
[353433180,1739825444602,-555.72,0.00015262,2]
[353433181,1739825444611,-221.82517608,0.00015262,2]
[353433182,1739825444621,-500.0,0.00015262,2]
[353433183,1739825444630,-224.5,0.00015262,2]
[353433184,1739825444639,-500.0,0.00015262,2]
[353433185,1739825444649,-163.65,0.00015262,2]
[353433186,1739825444658,-1219.47,0.00015342,2]
[353433187,1739825444668,-500.0,0.00015342,2]
[353433188,1739825444677,-998.94,0.00015342,2]
[353433189,1739825444686,-824.59,0.00015342,2]
[353433191,1739825444696,-203.63,0.00015344,2]
[353433193,1739825444706,-454.07,0.00015344,2]
[353433195,1739825444716,-560.56,0.00015344,2]
[353433197,1739825444726,-500.0,0.00015344,2]
[353433199,1739825444736,-500.0,0.00015344,2]
[353433201,1739825444748,-500.0,0.00015344,2]
[353433203,1739825444758,-427.5,0.00015344,2]
[353433205,1739825444768,-500.0,0.00015344,2]
[353433207,1739825444777,-500.0,0.00015344,2]
[353433209,1739825444787,-212.80040076,0.00015344,2]
[353433211,1739825444796,-3663.35518771,0.00015416,3]
[353433213,1739825444809,-585.04698898,0.00015416,3]
[353433215,1739825444820,-299.16028537,0.00015416,3]
[353433217,1739825444833,-376.42012793,0.00015416,3]
[353433220,1739825444845,-12061.60468911,0.00015416,3]
[353433222,1739825444855,-1219.47,0.00015424,2]
[353433224,1739825444864,-501.85803482,0.00015424,2]
[353433226,1739825444873,-998.94,0.00015424,2]
[353433228,1739825444882,-824.59,0.00015424,2]
[353433230,1739825444893,-605.66,0.00015426,2]
[353433232,1739825444903,-152.83,0.00015426,2]
[353433234,1739825444913,-347.91,0.00015426,2]
[353433236,1739825444922,-266.55,0.00015426,2]
[353433237,1739825444931,-500.0,0.00015426,2]
[353433240,1739825444942,-150.0,0.00015501,2]
[353433242,1739825444952,-1219.47,0.00015506,2]
[353433243,1739825444961,-998.94,0.00015506,2]
[353433245,1739825444971,-824.59,0.00015506,2]
[353433247,1739825444981,-225.22,0.00015508,2]
[353433249,1739825444991,-1219.67203025,0.00015589,2]
[353433251,1739825445000,-842.42946981,0.00015589,2]
[353433254,1739825445011,-156.52427386,0.00015589,2]
[353433256,1739825445020,-185.79665853,0.00015589,2]
[353433258,1739825445038,-639.00078817,0.00015589,2]
[353433260,1739825445047,-1627.57759105,0.00015609,2]
[353433262,1739825445057,-500.0,0.00015634,2]
[353433264,1739825445066,-206.24648029,0.00015634,2]
[353433266,1739825445078,-293.75351971,0.00015634,2]
[353433268,1739825445088,-1604.63648029,0.00015725,2]
[353433270,1739825445100,-3189.22351971,0.00015725,2]
[353433273,1739825445110,-217.105,0.00015725,2]
[353433275,1739825445119,-197.39,0.00015805,2]
[353433276,1739825445128,-228.96840692,0.00015854,2]
[353433279,1739825445140,-271.03159308,0.00015854,2]
[353433281,1739825445149,-2000.0,0.00015854,2]
[353433283,1739825445159,-500.0,0.00015854,2]
[353433285,1739825445169,-500.0,0.00015854,2]
[353433287,1739825445179,-200.0,0.00015854,2]
[353433289,1739825445190,-150.0,0.00015862,2]
[353433291,1739825445200,-700.0,0.00016,2]
[353433293,1739825445209,-2888.33836866,0.00016064,3]
[353433295,1739825445221,-6073.68070687,0.00016064,3]
[353433297,1739825445233,-388.86363569,0.00016064,3]
[353433299,1739825445244,-7634.70456788,0.00016064,3]
[353433301,1739825445254,-150.0,0.00016222,2]
[353433303,1739825445264,-1627.57759105,0.00016224,2]
[353433305,1739825445274,-321.00166041,0.00016372,2]
[353433307,1739825445283,-758.52828876,0.00016438,3]
[353433309,1739825445293,-300.0,0.00016438,2]
[353433311,1739825445302,-150.0,0.00016438,2]
[353433313,1739825445312,-16985.5872791,0.00016567,3]
[353433315,1739825445321,-150.0,0.00016583,2]
[353433317,1739825445331,-150.0,0.00016644,2]
[353433319,1739825445340,-791.29,0.00016658,30]
[353433321,1739825445351,-176.45,0.00016712,2]
[353433323,1739825445360,-1000.0,0.00016764,2]
[353433326,1739825445372,-1627.57759105,0.00016839,2]
[353433328,1739825445383,-150.0,0.00016943,2]
[353433329,1739825445392,-500.0,0.00017004,2]
[353433332,1739825445402,-500.0,0.00017004,2]
[353433333,1739825445411,-500.0,0.00017004,2]
[353433336,1739825445421,-718.17289,0.000171,2]
[353433337,1739825445431,-214.18734088,0.00017123,2]
[353433340,1739825445441,-1129.64097839,0.00017287,2]
[353433342,1739825445450,-150.0,0.00017304,2]
[353433344,1739825445460,-1627.57759105,0.00017454,2]
[353433346,1739825445470,-500.0,0.00017488,2]
[353433348,1739825445480,-16985.5872791,0.00017568,3]
[353433350,1739825445489,-500.0,0.00017588,2]
[353433352,1739825445499,-150.0,0.00017643,2]
[353433354,1739825445509,-150.0,0.00017664,2]
[353433356,1739825445518,-500.0,0.00017688,2]
[353433358,1739825445528,-293.0,0.00017699,2]
[353433360,1739825445537,-9999.99,0.00017728,2]
[353433362,1739825445547,-500.0,0.00017788,2]
[353433364,1739825445556,-600.0,0.00017808,2]
[353433365,1739825445566,-150.0,0.00017826,2]
[353433367,1739825445576,-150.0,0.00017826,2]
[353433369,1739825445585,-150.0,0.00017827,2]
[353433370,1739825445594,-150.0,0.00017827,2]
[353433372,1739825445604,-150.0,0.00017831,2]
[353433374,1739825445614,-150.0,0.00017833,2]
[353433375,1739825445623,-150.0,0.00017834,2]
[353433377,1739825445633,-150.0,0.00017835,2]
[353433379,1739825445642,-150.0,0.00017839,2]
[353433380,1739825445651,-150.0,0.00017841,2]
[353433382,1739825445661,-150.0,0.00017848,2]
[353433384,1739825445671,-150.0,0.00017848,2]
[353433385,1739825445680,-150.0,0.00017849,2]
[353433387,1739825445690,-150.0,0.0001785,2]
[353433389,1739825445699,-150.0,0.00017862,2]
[353433390,1739825445709,-150.0,0.00017868,2]
[353433392,1739825445719,-150.0,0.00017874,2]
[353433394,1739825445729,-150.0,0.0001788,2]
[353433396,1739825445739,-150.0,0.00017882,2]
[353433397,1739825445753,-150.0,0.00017883,2]
[353433399,1739825445763,-150.0,0.00017887,2]
[353433401,1739825445772,-500.0,0.00017888,2]
[353433403,1739825445782,-150.0,0.00017889,2]
[353433404,1739825445792,-150.0,0.00017896,2]
[353433406,1739825445801,-150.0,0.00017901,2]
[353433408,1739825445811,-150.0,0.0001791,2]
[353433409,1739825445822,-150.0,0.00017913,2]
[353433411,1739825445832,-150.0,0.00017914,2]
[353433413,1739825445842,-150.0,0.00017914,2]
[353433415,1739825445851,-150.0,0.00017916,2]
[353433417,1739825445861,-150.0,0.0001792,2]
[353433418,1739825445870,-4000.0,0.0001792,2]
[353433420,1739825445879,-150.0,0.00017922,2]
[353433422,1739825445889,-150.0,0.00017924,2]
[353433424,1739825445898,-150.0,0.00017927,2]
[353433425,1739825445907,-150.0,0.00017929,2]
[353433428,1739825445916,-150.0,0.00017938,2]
[353433430,1739825445926,-150.0,0.00017944,2]
[353433433,1739825445935,-150.0,0.00017951,2]
[353433435,1739825445944,-150.0,0.00017953,2]
[353433437,1739825445954,-150.0,0.00017955,2]
[353433438,1739825445964,-150.0,0.00017956,2]
[353433440,1739825445973,-150.0,0.00017956,2]
[353433442,1739825445983,-150.0,0.00017966,2]
[353433444,1739825445993,-150.0,0.00017968,2]
[353433446,1739825446002,-150.0,0.00017977,2]
[353433447,1739825446012,-150.0,0.00017977,2]
[353433449,1739825446021,-150.0,0.00017978,2]
[353433451,1739825446030,-150.0,0.00017979,2]
[353433453,1739825446040,-150.0,0.0001798,2]
[353433454,1739825446049,-150.0,0.0001798,2]
[353433456,1739825446058,-150.0,0.00017984,2]
[353433458,1739825446068,-150.0,0.00017985,2]
[353433460,1739825446077,-150.0,0.00017988,2]
[353433461,1739825446086,-500.0,0.00017988,2]
[353433463,1739825446096,-150.0,0.00017989,2]
[353433465,1739825446105,-150.0,0.00017991,2]
[353433467,1739825446114,-150.0,0.00017992,2]
[353433469,1739825446123,-150.0,0.00017993,2]
[353433471,1739825446134,-150.0,0.00017994,2]
[353433472,1739825446144,-150.0,0.00017997,2]
[353433474,1739825446153,-150.0,0.00017998,2]
[353433476,1739825446162,-750.0,0.00018,2]
[353433478,1739825446171,-150.0,0.00018,2]
[353433480,1739825446181,-150.0,0.00018001,2]
[353433481,1739825446190,-16985.5872791,0.00018006,3]
[353433483,1739825446199,-150.0,0.00018007,2]
[353433485,1739825446209,-150.0,0.00018009,2]
[353433487,1739825446218,-150.0,0.00018009,2]
[353433489,1739825446229,-150.0,0.00018013,2]
[353433490,1739825446238,-150.0,0.00018016,2]
[353433492,1739825446248,-150.0,0.00018016,2]
[353433494,1739825446258,-150.0,0.00018017,2]
[353433496,1739825446267,-150.0,0.00018018,2]
[353433498,1739825446277,-150.0,0.00018019,2]
[353433499,1739825446286,-150.0,0.00018021,2]
[353433501,1739825446296,-150.0,0.00018022,2]
[353433503,1739825446305,-150.0,0.00018025,2]
[353433505,1739825446315,-150.0,0.00018029,2]
[353433507,1739825446324,-150.0,0.00018029,2]
[353433508,1739825446333,-150.0,0.0001803,2]
[353433510,1739825446342,-150.0,0.00018035,2]
[353433512,1739825446352,-150.0,0.00018036,2]
[353433514,1739825446361,-150.0,0.00018044,2]
[353433516,1739825446370,-150.0,0.00018047,2]
[353433517,1739825446379,-150.0,0.0001805,2]
[353433519,1739825446388,-150.0,0.0001805,2]
[353433521,1739825446398,-150.0,0.0001805,2]
[353433523,1739825446408,-150.0,0.0001805,2]
[353433524,1739825446417,-150.0,0.00018053,2]
[353433526,1739825446426,-150.0,0.00018061,2]
[353433528,1739825446436,-16985.5872791,0.00018069,3]
[353433530,1739825446445,-150.0,0.00018069,2]
[353433532,1739825446455,-1627.57759105,0.0001807,2]
[353433533,1739825446464,-150.0,0.0001807,2]
[353433535,1739825446474,-16985.5872791,0.0001807,3]
[353433537,1739825446483,-500.0,0.00018073,2]
[353433539,1739825446492,-150.0,0.00018075,2]
[353433540,1739825446501,-150.0,0.00018076,2]
[353433542,1739825446511,-150.0,0.00018078,2]
[353433544,1739825446521,-2487.71766099,0.00018079,3]
[353433546,1739825446533,-526.75623053,0.00018079,3]
[353433548,1739825446545,-546.22216562,0.00018079,3]
[353433550,1739825446556,-4332.830364,0.00018079,3]
[353433554,1739825446584,-420.75696083,0.00013698,2]
[353433555,1739825446593,-1110.0,0.00014454,2]
[353433557,1739825446602,-4884.03219417,0.00018079,3]
[353433559,1739825446613,-21193.61594279,0.00018079,3]
[353433561,1739825446625,-150.0,0.0001808,2]
[353433563,1739825446635,-500.0,0.0001808,2]
[353433564,1739825446644,-28707.56894344,0.0001808,3]
[353433565,1739825446655,-1935.895,0.0001808,3]
[353433566,1739825446667,-71270.05973056,0.0001808,3]
[353433567,1739825446676,-200.0,0.00018082,2]
[353433568,1739825446686,-150.0,0.00018086,2]
[353433569,1739825446695,-150.0,0.00018088,2]
[353433570,1739825446705,-500.0,0.00018088,2]
[353433571,1739825446714,-150.0,0.00018089,2]
[353433572,1739825446724,-500.0,0.00018089,2]
[353433573,1739825446734,-150.0,0.0001809,2]
[353433574,1739825446746,-150.0,0.0001809,2]
[353433575,1739825446759,-150.0,0.00018092,2]
[353433577,1739825446771,-150.0,0.00018095,2]
[353433578,1739825446782,-150.0,0.00018095,2]
[353433580,1739825446792,-150.0,0.00018096,2]
[353433582,1739825446804,-451.24123776,0.00018099,2]
[353433584,1739825446813,-624.48,0.00018099,2]
[353433586,1739825446824,-1645.93,0.00018099,2]
[353433588,1739825446834,-130338.99287665,0.000181,2]
[353433591,1739825446847,-1254.32754042,0.000181,2]
[353433593,1739825446863,-16694.49999995,0.000181,2]
[353433596,1739825446877,-621.59999998,0.000181,2]
[353433598,1739825446890,-403.92485244,0.000181,2]
[353433600,1739825446903,-157788.42519179,0.000181,2]
[353433603,1739825446914,-7357.91,0.000181,2]
[353433605,1739825446925,-883.08,0.000181,7]
[353433607,1739825446936,-200.0,0.000181,2]
[353433609,1739825446948,-790.44,0.0001816,2]
[353433611,1739825446959,-500.0,0.00018188,2]
[353433614,1739825446970,-33847.62748734,0.000182,5]
[353433616,1739825446982,-321.00166041,0.00018241,2]
[353433618,1739825446992,-150.40475384,0.00018246,2]
[353433620,1739825447003,-200.0,0.00018281,2]
[353433622,1739825447014,-336.90152,0.00018288,7]
[353433624,1739825447025,-500.0,0.00018288,2]
[353433626,1739825447035,-460.56567993,0.00018354,2]
[353433628,1739825447045,-1102.49230795,0.00018354,2]
[353433631,1739825447059,-193.0844775,0.00018354,2]
[353433633,1739825447070,-82607.25,0.00018356,2]
[353433635,1739825447081,-150.0,0.00018385,2]
[353433637,1739825447091,-500.0,0.00018388,2]
[353433639,1739825447102,-1000.0,0.00018441,2]
[353433641,1739825447112,-200.0,0.00018464,2]
[353433643,1739825447123,-462.1,0.0001848,10]
[353433645,1739825447136,-440.13,0.00018485,2]
[353433647,1739825447177,-1508.22,0.00018485,2]
[353433649,1739825447280,-440.13,0.00018485,2]
[353433651,1739825447365,-336.90152,0.00018488,7]
[353433653,1739825447455,-500.0,0.00018488,2]
[353433655,1739825447589,-155471.96463558,0.000185,2]
[353433658,1739825447717,-130000.0,0.000185,2]
[353433660,1739825447818,-7522.18915023,0.00018502,2]
[353433662,1739825447973,-150.0,0.00018512,2]
[353433664,1739825448068,-500.0,0.00018588,2]
[353433666,1739825448183,-154.58,0.000186,2]
[353433668,1739825448279,-154.58,0.000186,2]
[353433670,1739825448317,-150.40475384,0.00018619,2]
[353433672,1739825448328,-1000.0,0.00018621,2]
[353433674,1739825448340,-1627.57759105,0.00018685,2]
[353433676,1739825448351,-336.90152,0.00018688,7]
[353433678,1739825448363,-500.0,0.00018688,2]
[353433680,1739825448374,-2069.25879647,0.000187,5]
[353433682,1739825448385,-150.0,0.00018746,2]
[353433684,1739825448395,-2000.0,0.00018751,2]
[353433686,1739825448405,-2000.0,0.00018765,10]
[353433689,1739825448417,-500.0,0.00018788,2]
[353433691,1739825448429,-500.0,0.00018799,2]
[353433693,1739825448440,-300.0,0.00018799,2]
[353433695,1739825448451,-1000000.0,0.000188,10]
[353433697,1739825448464,-325917.07024768,0.000188,3]
[353433699,1739825448476,-997.42066805,0.0001888,2]
[353433702,1739825448487,-15579.42803229,0.00018888,2]
[353433704,1739825448498,-336.90152,0.00018888,7]
[353433706,1739825448509,-500.0,0.00018888,2]
[353433708,1739825448520,-7357.91,0.000189,2]
[353433710,1739825448530,-25635.78031475,0.000189,2]
[353433712,1739825448540,-68541.5245,0.000189,2]
[353433714,1739825448551,-10000.81397829,0.000189,14]
[353433716,1739825448561,-167.81627908,0.000189,2]
[353433718,1739825448572,-4867.13264068,0.000189,2]
[353433720,1739825448582,-213.81749126,0.000189,2]
[353433722,1739825448593,-456.82883679,0.000189,2]
[353433724,1739825448605,-165.92,0.00018927,2]
[353433727,1739825448619,-559.28,0.00018936,2]
[353433729,1739825448631,-197.39,0.00018966,2]
[353433731,1739825448641,-500.0,0.00018988,2]
[353433733,1739825448651,-150.40475384,0.00018992,2]
[353433735,1739825448662,-32442.25566427,0.00019,2]
[353433737,1739825448672,-31212.05262559,0.00019,2]
[353433739,1739825448683,-15781.92,0.00019,7]
[353433741,1739825448693,-15221.29013415,0.00019,2]
[353433744,1739825448707,-9000.51780055,0.00019,2]
[353433746,1739825448719,-17568.98522544,0.00019,3]
[353433748,1739825448734,-1800.0,0.00019,20]
[353433750,1739825448748,-7600.29036939,0.00019,2]
[353433752,1739825448762,-961.61,0.00019,2]
[353433754,1739825448774,-3714.67690148,0.00019,2]
[353433756,1739825448785,-10343.61607466,0.00019,2]
[353433758,1739825448796,-554.54346796,0.00019,2]
[353433760,1739825448806,-110657.1000349,0.00019,15]
[353433762,1739825448816,-91132.41859618,0.00019,2]
[353433764,1739825448827,-53608.5982425,0.00019,2]
[353433766,1739825448838,-77229.58115389,0.00019,2]
[353433768,1739825448848,-19446.78980589,0.00019,2]
[353433770,1739825448859,-41620.9222747,0.00019,2]
[353433772,1739825448870,-5000.0,0.00019,7]
[353433774,1739825448882,-151.0,0.00019,2]
[353433777,1739825448892,-341.13141169,0.0001901,7]
[353433779,1739825448904,-1000.0,0.0001902,2]
[353433781,1739825448915,-150.0,0.00019055,2]
[353433783,1739825448925,-336.90152,0.00019088,7]
[353433785,1739825448936,-500.0,0.00019088,2]
[353433787,1739825448946,-500.0,0.000191,2]
[353433789,1739825448957,-500.0,0.000191,2]
[353433791,1739825448970,-651.61776151,0.000191,2]
[353433793,1739825448983,-500.0,0.000191,2]
[353433795,1739825448993,-3600.0,0.000191,2]
[353433797,1739825449004,-500.0,0.000191,2]
[353433799,1739825449015,-3600.0,0.000191,2]
[353433801,1739825449025,-3600.0,0.000191,2]
[353433803,1739825449036,-3600.0,0.000191,2]
[353433805,1739825449047,-3600.0,0.000191,2]
[353433807,1739825449058,-3600.0,0.000191,2]
[353433809,1739825449068,-500.0,0.000191,2]
[353433811,1739825449080,-3600.0,0.000191,2]
[353433813,1739825449091,-500.0,0.000191,2]
[353433815,1739825449101,-3600.0,0.000191,2]
[353433817,1739825449112,-3600.0,0.000191,2]
[353433819,1739825449123,-500.0,0.000191,2]
[353433821,1739825449134,-3600.0,0.000191,2]
[353433823,1739825449145,-3600.0,0.000191,2]
[353433825,1739825449155,-3600.0,0.000191,2]
[353433827,1739825449165,-3600.0,0.000191,2]
[353433829,1739825449176,-500.0,0.000191,2]
[353433831,1739825449188,-6507.7299325,0.000191,2]
[353433834,1739825449198,-500.0,0.000191,2]
[353433836,1739825449209,-500.0,0.000191,2]
[353433838,1739825449219,-500.0,0.000191,2]
[353433840,1739825449232,-500.0,0.000191,2]
[353433842,1739825449243,-500.0,0.000191,2]
[353433844,1739825449253,-500.0,0.000191,2]
[353433846,1739825449264,-500.0,0.000191,2]
[353433848,1739825449275,-500.0,0.000191,2]
[353433850,1739825449285,-500.0,0.000191,2]
[353433852,1739825449296,-500.0,0.000191,2]
[353433854,1739825449306,-500.0,0.000191,2]
[353433856,1739825449317,-500.0,0.000191,2]
[353433858,1739825449328,-500.0,0.000191,2]
[353433861,1739825449340,-501.07255175,0.000191,2]
[353433862,1739825449351,-500.0,0.000191,2]
[353433865,1739825449362,-500.0,0.000191,2]
[353433867,1739825449373,-766.35412573,0.000191,2]
[353433869,1739825449385,-500.0,0.000191,2]
[353433871,1739825449396,-500.0,0.000191,2]
[353433873,1739825449408,-1900.0,0.000191,2]
[353433875,1739825449418,-1900.0,0.000191,2]
[353433877,1739825449429,-1900.0,0.000191,2]
[353433879,1739825449440,-1900.0,0.000191,2]
[353433881,1739825449451,-1900.0,0.000191,2]
[353433883,1739825449462,-500.0,0.000191,2]
[353433885,1739825449473,-700.0,0.000191,2]
[353433887,1739825449485,-500.0,0.000191,2]
[353433889,1739825449496,-1900.0,0.000191,2]
[353433891,1739825449507,-548.12995629,0.000191,2]
[353433893,1739825449518,-500.0,0.000191,2]
[353433895,1739825449529,-1900.0,0.000191,2]
[353433897,1739825449540,-700.0,0.000191,2]
[353433899,1739825449550,-1900.0,0.000191,2]
[353433901,1739825449562,-700.0,0.000191,2]
[353433903,1739825449573,-1900.0,0.000191,2]
[353433905,1739825449584,-700.0,0.000191,2]
[353433907,1739825449594,-1900.0,0.000191,2]
[353433909,1739825449604,-700.0,0.000191,2]
[353433911,1739825449614,-1900.0,0.000191,2]
[353433913,1739825449625,-700.0,0.000191,2]
[353433915,1739825449636,-700.0,0.000191,2]
[353433917,1739825449651,-1900.0,0.000191,2]
[353433919,1739825449661,-700.0,0.000191,2]
[353433921,1739825449671,-500.0,0.000191,2]
[353433923,1739825449680,-500.0,0.000191,2]
[353433925,1739825449690,-1900.0,0.000191,2]
[353433927,1739825449699,-700.0,0.000191,2]
[353433929,1739825449708,-500.0,0.000191,2]
[353433931,1739825449718,-3025.09306393,0.000191,2]
[353433932,1739825449727,-700.0,0.000191,2]
[353433935,1739825449737,-500.0,0.000191,2]
[353433936,1739825449750,-500.0,0.000191,2]
[353433938,1739825449760,-700.0,0.000191,2]
[353433940,1739825449770,-500.0,0.000191,2]
[353433942,1739825449780,-700.0,0.000191,2]